Cogmind - Beta 12 @@@ ROGUE MODE // 2024.02.08 @ 18:45:31 Player: Eddie Result: Destroyed by Y-45 Defender with Beam Rifle Performance ------------- Evolutions (2) 1000 Regions Visited (5) 1000 Robots Destroyed (93) 465 Value Destroyed (2897) 2897 Prototype IDs (3) 60 Alien Tech Used (0) 0 Bonus (590) 590 TOTAL SCORE: 6012 Bonus ------- High Alert Combat Kills 453 Follower Combat Kills 83 Entered Garrisons 200 Friendly Fire -146 Cogmind --------- Core Integrity 0/550 Matter 207/300 Energy 147/150 System Corruption 0% Temperature Warning (389) Movement Core (800) Ox15 Location -8/Garrison Parts ------- > --- POWER (1) -------- Micro Nuclear Core > --- PROPULSION (4) --- (None) > --- UTILITY (4) ------ Medium Storage Unit Signal Interpreter Advanced Targeting Computer Medium Reactive Plating > --- WEAPON (2) ------- Advanced Assault Cannon Advanced Assault Cannon > --- INVENTORY (10) --- Light Ion Engine Sensor Array Medium Reactive Plating Authchip [R/Combat] System Restoration Module Advanced Assault Cannon Improved Grenade Launcher Mining Laser Katana Peak State ------------ > --- POWER ------------ Light Nuclear Core > --- PROPULSION ------- Light Treads Light Treads Light Treads Surge Thruster > --- UTILITY ---------- Medium Storage Unit Signal Interpreter Advanced Targeting Computer Medium Reactive Plating > --- WEAPON ----------- Advanced Assault Cannon Advanced Assault Cannon > --- INVENTORY -------- Light Ion Engine Micro Nuclear Core Flight Unit Sensor Array Authchip [R/Combat] System Restoration Module Improved Grenade Launcher Improved Grenade Launcher Mining Laser Katana [Rating: 28] Favorites ----------- Power Cooled Ion Engine Engine Cooled Ion Engine Power Core Light Nuclear Core Propulsion Aluminum Leg Treads Light Treads Leg Aluminum Leg Flight Unit Flight Unit Utility Medium Storage Unit Device Heat Sink Storage Medium Storage Unit Processor Signal Interpreter Protection Light Armor Plating Weapon Gatling Laser Energy Gun Gatling Laser Energy Cannon Light EM Pulse Cannon Ballistic Gun Minigun Ballistic Cannon Advanced Assault Cannon Launcher Rocket Launcher Special Weapon Mining Laser Slashing Weapon Katana Special Melee Weapon Datajack Build | -11 -10 -9 -9 -8 -8 ------- Run | Jun Mat Mat Min Mat Gar Slots Evolved 4 | . . 2 . 2 . Power . | . . . . . . Propulsion 2 | . . 2 . . . Utility 2 | . . . . 2 . Weapon . | . . . . . . Parts Attached 107 | 6 19 25 8 3 46 Power 14 | 1 4 4 . . 5 Engine 11 | 1 4 4 . . 2 Core 3 | . . . . . 3 Reactor . | . . . . . . Propulsion 39 | 2 5 12 1 1 18 Treads 11 | . . 1 . . 10 Leg 23 | 2 5 11 1 1 3 Wheel . | . . . . . . Hover . | . . . . . . Flight 5 | . . . . . 5 Utility 15 | 1 3 4 1 2 4 Device 6 | . . 3 . 2 1 Storage 2 | 1 1 . . . . Processor 2 | . . . 1 . 1 Hackware . | . . . . . . Protection 5 | . 2 1 . . 2 Artifact . | . . . . . . Weapon 39 | 2 7 5 6 . 19 Energy Gun 16 | 1 1 5 3 . 6 Energy Cannon 1 | . . . 1 . . Ballistic Gun 6 | 1 2 . . . 3 Ballistic Cannon 2 | . . . . . 2 Launcher 7 | . 4 . 1 . 2 Special Weapon 2 | . . . 1 . 1 Impact Weapon . | . . . . . . Slashing Weapon 2 | . . . . . 2 Piercing Weapon . | . . . . . . Special Melee Weapon 3 | . . . . . 3 Unidentified Prototypes 2 | . . 2 . . . Parts Lost 36 | . 1 8 . 1 26 Power 5 | . 1 1 . . 3 Propulsion 19 | . . 4 . 1 14 Utility 5 | . . 2 . . 3 Weapon 7 | . . 1 . . 6 Highest Loss Streak 7 | . 1 6 . 1 7 To Critical Strikes . | . . . . . . Average Slot Usage (%) 90 | . 90 85 100 94 87 Engine 8 | . 11 10 11 9 4 Core 1 | . . . . . 3 Treads 5 | . . 3 . . 10 Leg 25 | . 27 29 44 36 11 Flight 3 | . . . . . 8 Device 4 | . . 6 2 13 3 Storage 10 | . 14 11 11 9 9 Processor 9 | . . . 8 9 16 Protection 3 | . 12 4 . . 3 Energy Gun 12 | . 8 19 19 18 5 Ballistic Gun 2 | . 10 . . . 4 Ballistic Cannon 1 | . . . . . 2 Launcher 1 | . 5 . . . . Naked Turns . | . . . . . . Heaviest Build 47 | 11 20 25 27 28 47 Greatest Support 60 | 20 20 40 40 50 60 Greatest Overweight (x) 6 | 1 4 5 . . 6 Average Overweight (x) . | . . . . . . Largest Inventory Capacity 10 | 8 10 10 10 10 10 Average Capacity 9 | 6 8 10 10 10 10 Most Carried 10 | 2 8 10 10 10 10 Average Carried 8 | . 5 7 9 9 9 Final Capacity 10 | 8 10 10 10 10 10 Final Carried 10 | 2 7 10 10 10 9 Class Distribution -------------------- 72% | Mutant 26% | Scavenger-Mutant Dominant Class ---------------- Mutant | -10/Materials Mutant | -9/Materials Mutant | -9/Mines Mutant | -8/Materials Scavenger-Mutant | -8/Garrison Resources | -11 -10 -9 -9 -8 -8 ----------- Run | Jun Mat Mat Min Mat Gar Matter Collected 1587 | 255 92 359 124 30 727 Remotely . | . . . . . . Salvage Created 2890 | . 292 1064 190 364 980 Parts 193 | . 29 62 16 29 57 Haulers Intercepted 6 | . 2 2 . 2 . Recyclers Shooed 5 | . 1 3 . 1 . Parts Field Recycled . | . . . . . . Retrieved Matter . | . . . . . . Parts Self-Destructed . | . . . . . . Prevented . | . . . . . . Kills | -11 -10 -9 -9 -8 -8 ------- Run | Jun Mat Mat Min Mat Gar Combat Hostiles Destroyed 80 | . 9 22 9 10 30 Melee 1 | . . . . . 1 Guns 61 | . 3 21 5 10 22 Cannons 5 | . . . . . 5 AOE 12 | . 6 . 4 . 2 Classes Destroyed 10 | . 4 3 . 2 1 Worker 1 | . . 1 . . . Builder 1 | . . . . 1 . Hauler 6 | . 2 2 . 2 . Recycler 2 | . . 2 . . . Watcher 2 | . 1 1 . . . Swarmer 35 | . 6 7 8 6 8 Cutter 2 | . . . . . 2 Grunt 26 | . 3 12 1 . 10 Sentry 16 | . . 3 . 3 10 Hunter 1 | . . . . 1 . Thug 1 | . . . 1 . . Best Kill Streak 7 | . 3 5 4 7 5 Combat Bots Only 5 | . 3 5 4 5 5 Max Kills in Single Turn 3 | . 3 2 2 2 2 Gunslinging 1 | . . 1 . 1 1 Exploded 3 | . 3 . 2 . 1 Melee 1 | . . . . . 1 Uniques/NPCs Destroyed . | . . . . . . Combat | -11 -10 -9 -9 -8 -8 -------- Run | Jun Mat Mat Min Mat Gar Damage Taken 5186 | . 354 938 196 327 3371 Core 869 | . 77 180 51 46 515 Absorbed by Shields . | . . . . . . Core Remaining (%) 70 | 100 69 . 42 . . Volleys Fired 226 | . 28 67 21 17 93 Largest 2 | . 2 2 2 2 2 Hottest 160 | . 60 112 160 160 160 Shots Fired 415 | . 54 134 30 34 163 Gun 355 | . 50 134 17 34 120 Cannon 38 | . . . 4 . 34 Launcher 13 | . 4 . 2 . 7 Special 9 | . . . 7 . 2 Kinetic 101 | . 26 . . . 75 Thermal 268 | . . 129 24 34 81 Explosive 13 | . 4 . 2 . 7 Electromagnetic 33 | . 24 5 4 . . Robot Hit Streak 31 | . 5 13 4 10 31 Robot Miss Streak 8 | . 8 3 5 3 6 Penetration Max . | . . . . . . Secondary Targets 6 | . . 4 . 1 1 Max Gunslinging Chain 1 | . . 1 . 1 1 Shots Hit Robots 294 | . 24 92 13 33 132 Core Hits 140 | . 19 41 10 18 52 Critical Kills . | . . . . . . Critical Parts Destroyed . | . . . . . . Critical Strikes 15 | . . 10 . . 5 Burn 11 | . . 10 . . 1 Blast 2 | . . . . . 2 Sever 2 | . . . . . 2 Melee Attacks 19 | . . . . . 19 Impact . | . . . . . . Slashing 8 | . . . . . 8 Piercing . | . . . . . . Sneak Attacks . | . . . . . . Combat Hostiles . | . . . . . . Follow-up Attacks . | . . . . . . Damage Inflicted 5741 | . 616 1353 432 632 2708 Guns 3958 | . 238 1350 140 632 1598 Cannons 823 | . . . 59 . 764 Explosions 758 | . 376 . 225 . 157 Melee 189 | . . . . . 189 Ramming 13 | . 2 3 8 . . Kinetic 1255 | . 99 . . . 1156 Thermal 3406 | . 55 1306 207 632 1206 Explosive 636 | . 321 . 158 . 157 Electromagnetic 242 | . 139 44 59 . . Impact . | . . . . . . Slashing 189 | . . . . . 189 Piercing . | . . . . . . Highest Corruption . | . . . . . . Average Corruption . | . . . . . . Corruption Purged . | . . . . . . Corruption Blocked . | . . . . . . Overload Shots . | . . . . . . Overflow Damage 56 | . 11 . . . 45 Projectiles . | . . . . . . Explosions 56 | . 11 . . . 45 Melee . | . . . . . . Knockbacks 1 | . . . . . 1 Impact . | . . . . . . Kinetic 1 | . . . . . 1 Secondary . | . . . . . . Self-Inflicted Damage 244 | . . . 32 . 212 Shots 5 | . . . 1 . 4 Rammed . | . . . . . . Targets Rammed 4 | . 1 1 2 . . Kicked 4 | . 1 1 2 . . Crushed . | . . . . . . Highest Temperature 417 | . 191 246 162 355 417 Average Temperature 97 | . 92 83 49 91 116 Received Heat Transfer 2076 | . 210 336 . 54 1476 Effects 4 | . . 2 . . 2 Shutdowns 1 | . . . . . 1 Interference 3 | . . 2 . . 1 Siege Activations . | . . . . . . Robots Corrupted . | . . . . . . Combat Hostiles . | . . . . . . Parts Fried . | . . . . . . Impact Corruptions . | . . . . . . Robots Melted 1 | . . 1 . . . Combat Hostiles 1 | . . 1 . . . Parts Melted 20 | . . 13 . 4 3 Heat Transferred 8655 | . 50 4070 361 1425 2749 Parts Sabotaged . | . . . . . . Parts Stolen . | . . . . . . Parts Stripped . | . . . . . . Power Chain Reactions 2 | . 1 . 1 . . Missiles Intercepted . | . . . . . . Alert | -11 -10 -9 -9 -8 -8 ------- Run | Jun Mat Mat Min Mat Gar Peak Influence 1459 | . 341 345 399 328 1459 Initial 213 | . . 59 123 . 213 Average 450 | . 131 175 185 145 835 Maximum Alert Level 4 | . 1 1 1 1 4 Low Security (%) 37 | 100 74 67 57 65 . Level 1 26 | . 25 32 42 34 15 Level 2 6 | . . . . . 15 Level 3 19 | . . . . . 44 Level 4 10 | . . . . . 24 Level 5 . | . . . . . . High Security . | . . . . . . Max Security . | . . . . . . Squads Dispatched 4 | . 2 . 1 1 . Investigation 1 | . . . 1 . . Extermination . | . . . . . . Reinforcement 2 | . 2 . . . . Assault . | . . . . . . Garrison 1 | . . . . 1 . Intercept . | . . . . . . Searches Triggered . | . . . . . . Construction Impeded . | . . . . . . Haulers Reinforced . | . . . . . . Active Scanning Responses . | . . . . . . Cargo Convoy Interrupts . | . . . . . . Stealth | -11 -10 -9 -9 -8 -8 --------- Run | Jun Mat Mat Min Mat Gar Distress Signals 3 | . 1 . . 2 . Communications Jammed . | . . . . . . Distress Signals . | . . . . . . Times Spotted 111 | . 15 29 12 16 39 Peak Tracking Total 7 | . 5 7 4 5 6 Tactical Retreats 9 | . . 3 . 1 5 Traps | -11 -10 -9 -9 -8 -8 ------- Run | Jun Mat Mat Min Mat Gar Traps Triggered 10 | . 6 . . . 4 Indirectly . | . . . . . . Trap Hack Attempts . | . . . . . . Triggered . | . . . . . . Disarmed . | . . . . . . Reprogrammed . | . . . . . . Reused . | . . . . . . Traps Extracted . | . . . . . . Installed . | . . . . . . Triggered . | . . . . . . Machines | -11 -10 -9 -9 -8 -8 ---------- Run | Jun Mat Mat Min Mat Gar Machines Disabled 9 | . 2 1 . . 6 Max in Single Turn 2 | . 1 1 . . 2 Garrison Relay 2 | . . . . . 2 Phase Generator 1 | . . . . . 1 Machines Repaired . | . . . . . . Machines Sabotaged . | . . . . . . Overloaded Fab Kills . | . . . . . . Hacking | -11 -10 -9 -9 -8 -8 --------- Run | Jun Mat Mat Min Mat Gar Machines Accessed 11 | . 3 3 1 2 2 Terminals 7 | . 3 2 . . 2 Fabricators . | . . . . . . Repair Stations . | . . . . . . Recycling Units 1 | . . 1 . . . Scanalyzers 1 | . . . . 1 . Garrison Access 1 | . . . . 1 . Total Hacks 32 | . 9 16 1 4 2 Successful 17 | . 6 7 1 3 . Failed 15 | . 3 9 . 1 2 Catastrophic 5 | . 1 2 . . 2 Database Lockouts . | . . . . . . Manual 10 | . 4 6 . . . Terminals 25 | . 9 14 . . 2 Fabricators . | . . . . . . Repair Stations . | . . . . . . Recycling Units 2 | . . 2 . . . Scanalyzers 2 | . . . . 2 . Garrison Access 2 | . . . . 2 . Terminal Hacks 8 | . 3 4 1 . . Open Door 1 | . . . 1 . . Terminal Index 1 | . 1 . . . . Locate Traps 2 | . 1 1 . . . Hauler Manifests 1 | . . 1 . . . Registered Components 1 | . 1 . . . . Registered Prototypes 1 | . . 1 . . . Zone Layout 1 | . . 1 . . . Fabricator Hacks . | . . . . . . Repair Station Hacks . | . . . . . . Recycling Unit Hacks 1 | . . 1 . . . Retrieve Components 1 | . . 1 . . . Scanalyzer 2 | . . . . 2 . Insert Component 1 | . . . . 1 . Analyze 1 | . . . . 1 . Garrison Access Hacks 1 | . . . . 1 . Unlock Access 1 | . . . . 1 . Unauthorized Hacks 5 | . 3 2 . . . Terminals 5 | . 3 2 . . . Botnet 5 | . 3 2 . . . Fabricators . | . . . . . . Repair Stations . | . . . . . . Recycling Units . | . . . . . . Scanalyzers . | . . . . . . Garrison Access . | . . . . . . Data Cores Recovered . | . . . . . . Used . | . . . . . . Hacking Detections 10 | . 3 3 . 2 2 Full Trace Events . | . . . . . . Feedback Events . | . . . . . . Feedback Blocked . | . . . . . . Robot Schematics Acquired . | . . . . . . Robots Built . | . . . . . . Authchips . | . . . . . . Time . | . . . . . . Total Robot Build Rating . | . . . . . . Part Schematics Acquired 1 | . . . . 1 . Parts Built . | . . . . . . Authchips . | . . . . . . Time . | . . . . . . Total Part Build Rating . | . . . . . . Parts Repaired . | . . . . . . Time . | . . . . . . Parts Recycled . | . . . . . . Recycled Matter . | . . . . . . Retrieved Matter . | . . . . . . Retrieved Components 10 | . . 10 . . . Parts Scanalyzed 1 | . . . . 1 . Part Schematics Acquired 1 | . . . . 1 . Parts Damaged . | . . . . . . Bothacking | -11 -10 -9 -9 -8 -8 ------------ Run | Jun Mat Mat Min Mat Gar Used RIF Installer . | . . . . . . Robots Hacked . | . . . . . . Non-combat . | . . . . . . Combat . | . . . . . . Robot Hacks Applied . | . . . . . . Relay Couplers Released 8 | . . . . . 8 Machine Destruction 8 | . . . . . 8 Fabnet Peak Effective % . | . . . . . . Robots Rewired . | . . . . . . Allies Hacked . | . . . . . . Hacks Repelled . | . . . . . . Allies | -11 -10 -9 -9 -8 -8 -------- Run | Jun Mat Mat Min Mat Gar Total Allies 3 | . . . 3 . . Largest Group 3 | . . . 3 2 . Highest-Rated Group 73 | . . . 73 42 . Highest-Rated Ally 31 | . . . 31 31 . Total Orders . | . . . . . . Ally Attacks 10 | . . . 5 5 . Total Damage 170 | . . . 85 85 . Kills 3 | . . . 2 1 . Allies Corrupted . | . . . . . . Allies Melted . | . . . . . . Intel | -11 -10 -9 -9 -8 -8 ------- Run | Jun Mat Mat Min Mat Gar Robot Analysis Total . | . . . . . . Derelict Logs Recovered 1 | . . . 1 . . Drone Launches . | . . . . . . Drone Recoveries . | . . . . . . Exploration | -11 -10 -9 -9 -8 -8 ------------- Run | Jun Mat Mat Min Mat Gar Turns Passed 5577 | 86 489 1036 1243 348 2375 Spaces Moved 3386 | 66 311 495 933 189 1392 Core 36 | 8 4 2 . . 22 Treads 674 | . . 66 . . 608 Legs 2365 | 58 307 427 933 189 451 Wheels . | . . . . . . Hover . | . . . . . . Flight 311 | . . . . . 311 Fastest Speed 29 | 50 100 120 120 120 29 Average Speed 129 | 114 121 142 120 121 133 Slowest Speed 360 | 120 250 300 120 125 360 Overloaded Moves . | . . . . . . Propulsion Burnouts . | . . . . . . Robots Hopped . | . . . . . . Cave-ins Triggered . | . . . . . . Exploration Rate (%) 48 | 3 56 37 98 20 76 Regions Visited 5 Branch Regions 1 Pre-discovered Areas 1 | . . . 1 . . Known Exits Taken 2 | . . . 1 1 . Unknown Exits Taken 3 | 1 1 1 . . . Scrap Searched 3 | . . . 3 . . Spaces Dug 4 | . . . 4 . . Terrain Destroyed 176 | . 33 . 23 . 120 Melee . | . . . . . . Projectile 7 | . . . 7 . . AOE 169 | . 33 . 16 . 120 Terrain Rammed . | . . . . . . Walls Destroyed . | . . . . . . Machines Disabled . | . . . . . . Actions | -11 -10 -9 -9 -8 -8 --------- Run | Jun Mat Mat Min Mat Gar Total 4141 | 73 366 695 1019 268 1720 Wait 264 | . 2 83 33 53 93 Move 3381 | 65 310 494 932 188 1392 Hop . | . . . . . . Pick Up 39 | 2 3 8 10 5 11 Fast Attach 51 | 6 14 11 . . 20 Attach 39 | . 2 7 6 3 21 Detach 18 | . 2 5 1 . 10 Swap 17 | . 3 7 2 . 5 Drop 42 | . 1 12 12 2 15 Fire 226 | . 28 67 21 17 93 Melee 19 | . . . . . 19 Ram . | . . . . . . Kick 4 | . 1 1 2 . . Crush . | . . . . . . Escape Stasis 41 | . . . . . 41 Rewire . | . . . . . . Trap . | . . . . . . Miscellaneous . | . . . . . . Route ------- -11/Junkyard -10/Materials -9/Materials (discovered 2 exits: *Min / [*Sto]) -9/Mines (discovered 2 exits: *Mat x2) -8/Materials -8/Garrison (discovered 3 exits: *Mat x3) History --------- Turn | Location | Event 8 | -11/Junkyard | Discovered new exit (range 15) 87 | -11/Junkyard | Entered Materials 308 | -10/Materials | Build established: Mutant 351 | -10/Materials | Discovered new exit (range 16) 576 | -10/Materials | Entered another Materials area 576 | -9/Materials | Evolved 2 slots: Propulsion x2 1027 | -9/Materials | Lost 6 parts (1p4n1u) 1180 | -9/Materials | Discovered new exit (range 15) 1346 | -9/Materials | Discovered new exit (range 15) 1612 | -9/Materials | Entered Mines 1617 | -9/Mines | Core integrity fell below 50% 1701 | -9/Mines | Met a Derelict shopkeep closing up shop 1864 | -9/Mines | Discovered new exit (range 14) 1887 | -9/Mines | Identified exit to Materials 2017 | -9/Mines | Learned location of Zion (-6) 2166 | -9/Mines | Received a Rocket Launcher from a helpful Derelict 2249 | -9/Mines | Received a Mining Laser from a helpful Derelict 2786 | -9/Mines | Discovered exit to Materials (range 6) 2855 | -9/Mines | Entered Materials 2855 | -8/Materials | Accompanied by 2 allies 2855 | -8/Materials | Evolved 2 slots: Utility x2 2860 | -8/Materials | Led the pair of lost Derelicts to an unsafe place 3150 | -8/Materials | Garrison activated, responded to threat 3196 | -8/Materials | Identified exit to Garrison 3203 | -8/Materials | Entered Garrison 3342 | -8/Garrison | Triggered checkpoint 3419 | -8/Garrison | Lost 4 parts (1p2n1u) 3471 | -8/Garrison | Discovered new exit (range 13) 3489 | -8/Garrison | Identified exit to Materials 3512 | -8/Garrison | Triggered checkpoint 3566 | -8/Garrison | Garrison Relay disabled 3716 | -8/Garrison | Phase Generator disabled 3753 | -8/Garrison | Discovered exit to Materials (range 9) 3863 | -8/Garrison | Garrison Relay disabled 4230 | -8/Garrison | Triggered checkpoint 4254 | -8/Garrison | Triggered checkpoint 4394 | -8/Garrison | Build established: Scavenger-Mutant 4413 | -8/Garrison | Core integrity fell below 50% 4439 | -8/Garrison | Lost 7 parts (1p5n1w) 5256 | -8/Garrison | Core integrity fell below 20% 5344 | -8/Garrison | Discovered exit to Materials (range 10) 5392 | -8/Garrison | Triggered checkpoint 5578 | -8/Garrison | Destroyed by Y-45 Defender with Beam Rifle Last Messages --------------- 05344_ EXIT=FOUND: MATERIALS 05372_ G-47 Trooper Aluminum Leg blasted off. 05375_ G-47 Trooper destroyed. 05381_ G-47 Trooper knocked back. 05381_ G-47 Trooper destroyed. 05385_ Acquired 37 matter. 05388_ Dropped Surge Thruster. 05389_ Acquired Aluminum Leg. 05390_ Acquired 21 matter. 05453_ ALERT: Garrison interior compromised. 05537_ Y-45 Defender springs to life. 05550_ Lgt. Treads destroyed. 05553_ Critical hit (Burn: +37). 05564_ Lgt. Nuclear Core destroyed. 05564_ Destroyed Lgt. Armor Plating. 05567_ Y-45 Defender destroyed. 05570_ Lgt. Treads destroyed. 05573_ Aluminum Leg destroyed. 05576_ Machine disabled. 05578_ Power failure, Mic. Nuclear Core shutdown. Map ----- +----------------------------------------------------+ | ?#####????????#!!!#???????????????????????? | | ?#"%"#????????#!%!#???????????????????????? | | ## " #######??#![!#???????????????????????? | | #??## ##???????????????????????? | | ##### #### #???#!#????????????????????????? | | #???#!## # ##### #????????????????????????? | | #???#[ % #????????????????????????? | | ????# #### #######????????????????????????? | | ????#!#??# #??????????????????????????????? | | ????#[#??# #??????????????????????????????? | | ????# #??# #??????????????????????????????? | | ????# #### ##?????????????????????????????? | | ????# T#?????????????????????????????? | | ????###### ##?????????????????????????????? | | ?????????# #??????????????????????????????? | | ?????????# #???#####??????????????????????? | | ?????????# #???# #??????????????????????? | | ???????### ##### < #??????????????????????? | | ######## #???#########??????????? | | #???#"""""""???????????? | | ######## ##########?###"[!!==|???????????? | | ##?????# ^#??????????# ????????????? | | #?????# ^#??????????# Y## #????????????? | | ##?????# #??????????# #%%#????????????? | | ####### ############ # #????????????? | | @# ## !"#???????? | | [ Y% ""#???????? | | #########+##############"=Y=!=["""#???????? | | ###?????# #//// /#??####" """"""""#???????? | | #?????# ### # ############???????? | | #?????######### ## # # ##??????????????? | | #???????????#### ##### ####?????????????? | | #???????????# #?????????????? | | ###???????????## ##????????????? | | #############?# # #????????????? | | #### # #????????????? | | #????????????? | | #### ##### ###### #######???????? | | #??# #???# #?# # ##"T"#???????? | | ???# #???# #?# "#???????? | | ???# #???# #?# # #######???????? | | ???# ##### #### # ## # ####?????????????? | | ???# + ##??????????????? | | ???####### #### #### # ###???????????????? | | ?????????# #??# #?######?????????????????? | | ?????????# #### ########?????????????????? | | ??###????# #?????????????????? | | ### ###### #?????????????????? | | !!*^ ######### < #?????????????????? | | ##### #####"#???????# #?????????????????? | +----------------------------------------------------+ Best States ------------- Heat Dissipation 50 Energy Generation 14 Energy Capacity 280 Matter Stores 300 Matter Capacity 300 Sight Range 16 Robot Scan Range 14 Terrain Scan Density 10 Armor Coverage 225 Resistance: KI 30 Evasion (%) 63 Targeting Accuracy 8 Recoil Reduction 3 Authchip Count 1 Item Schematics ----------------- Imp. EM Shotgun | -8/Materials | Scanalyzed Robot Schematics ------------------ None Fabricated ------------ Nothing Alien Tech Used ----------------- None Achievements -------------- None Challenges ------------ None Game ------ Seed ScatterImprovedCalibrator Manual? 0 Play Time 00:53:26 Cumulative 25.2 hours Start 2024.02.08 @ 16:46:00 End 2024.02.08 @ 18:45:31 Sessions 1 Manual Loads 0 Difficulty Rogue Special Mode None Game No. 37 Rogue 37 Adventurer 0 Explorer 0 Win Type - Total 0 Types 0/0/0/0/0/0/0/0/0 Lore% 19 Gallery% 29 Achievement% 24 Wizard Run 0 Options --------- ASCII 0 Keyboard 1 Movement Numpad Keybinds 0 Fullscreen 2 Font 18/Smallcaps Map View 76x50 Tactical HUD 1 Map Filters NONE Filters NONE Steam 1 RUN: 2cc1ff17-8f03-49f2-9f48-af3bc4afce3a